Cogmind - Beta 17 @@@ ROGUE MODE // 2026.06.30 @ 21:35:35 Player: DreamCore Result: Destroyed by C-40 Crusher with Compactor Performance ------------- Evolutions (3) 1500 Regions Visited (9) 1800 Robots Destroyed (76) 380 Value Destroyed (2063) 2063 Prototype IDs (32) 640 Alien Tech Used (0) 0 Bonus (680) 680 TOTAL SCORE: 7063 Bonus ------- High Alert Combat Kills 120 Follower Combat Kills 260 Aligned with FarCom 300 Cogmind --------- Core Integrity 0/700 Matter 245/300 Energy 100/100 System Corruption 6% Temperature Cool (0) Movement Core (50) Location -7/Waste Parts ------- > --- POWER (1) -------- (None) > --- PROPULSION (4) --- (None) > --- UTILITY (6) ------ (None) > --- WEAPON (2) ------- (None) > --- INVENTORY (5) ---- Lightning Gun Improved Medium Laser Advanced Beam Rifle Dispersion Rifle Rocket Launcher Peak State ------------ > --- POWER ------------ Improved Deuterium Engine > --- PROPULSION ------- Aluminum Leg Aluminum Leg Improved Aluminum Leg Titanium Leg > --- UTILITY ---------- Improved Heat Sink Medium Storage Unit Structural Scanner Targeting Computer Targeting Computer Trap Reconfigurator > --- WEAPON ----------- Advanced Beam Rifle Advanced Beam Rifle > --- INVENTORY -------- Light Nuclear Core Aluminum Leg Particle Charger Weapon Cycler Hardened Medium Armor Plating Lightning Gun Improved Medium Laser Advanced Beam Rifle Dispersion Rifle Rocket Launcher [Rating: 38] Favorites ----------- Power Improved Ion Engine Engine Improved Ion Engine Power Core Light Nuclear Core Propulsion Aluminum Leg Leg Aluminum Leg Utility Medium Storage Unit Device Improved Heat Sink Storage Medium Storage Unit Processor Targeting Computer Protection Light Armor Plating Weapon Beam Rifle Energy Gun Beam Rifle Ballistic Gun Assault Rifle Launcher Rocket Launcher Build | -11 -10 -10 -9 -9 -9 -8 -8 -7 -7 ------- Run | Yrd Mat Min Mat Min Exi Min Mat Fac Was Slots Evolved 6 | . . . 2 . . . 2 2 . Power . | . . . . . . . . . . Propulsion 2 | . . . . . . . 1 1 . Utility 4 | . . . 2 . . . 1 1 . Weapon . | . . . . . . . . . . Parts Attached 61 | . 8 6 15 9 1 . 19 2 1 Power 6 | . 1 1 . 1 . . 2 . 1 Engine 5 | . 1 1 . 1 . . 2 . . Core 1 | . . . . . . . . . 1 Reactor . | . . . . . . . . . . Propulsion 19 | . 1 1 6 5 . . 5 1 . Treads . | . . . . . . . . . . Leg 19 | . 1 1 6 5 . . 5 1 . Wheel . | . . . . . . . . . . Hover . | . . . . . . . . . . Flight . | . . . . . . . . . . Utility 23 | . 4 2 5 3 1 . 7 1 . Device 15 | . 1 2 3 3 1 . 4 1 . Storage 1 | . 1 . . . . . . . . Processor 5 | . 2 . 1 . . . 2 . . Hackware . | . . . . . . . . . . Protection 2 | . . . 1 . . . 1 . . Artifact . | . . . . . . . . . . Weapon 13 | . 2 2 4 . . . 5 . . Energy Gun 12 | . 2 2 4 . . . 4 . . Energy Cannon . | . . . . . . . . . . Ballistic Gun . | . . . . . . . . . . Ballistic Cannon . | . . . . . . . . . . Launcher 1 | . . . . . . . 1 . . Special Weapon . | . . . . . . . . . . Impact Weapon . | . . . . . . . . . . Slashing Weapon . | . . . . . . . . . . Piercing Weapon . | . . . . . . . . . . Special Melee Weapon . | . . . . . . . . . . Unidentified Prototypes 4 | . . 1 1 . . . 2 . . Parts Lost 16 | . 1 . 1 4 . . 3 . 7 Power 2 | . . . . 1 . . 1 . . Propulsion 2 | . . . . 1 . . . . 1 Utility 10 | . . . 1 2 . . 2 . 5 Weapon 2 | . 1 . . . . . . . 1 Highest Loss Streak 7 | . 1 . 1 2 . . 3 . 7 To Critical Strikes . | . . . . . . . . . . Average Backups 9 | . 7 10 9 9 10 10 9 8 7 Power 1 | . 1 1 1 . 1 1 1 1 . Propulsion 3 | . 3 3 3 3 4 4 2 1 . Utility 3 | . 1 3 2 2 3 3 3 3 1 Weapon 2 | . 1 2 2 2 2 2 2 3 4 Tool/Special . | . . . . . . . . . . Unused Backups 36 | . 10 4 9 . . . 9 . 4 Power 8 | . 3 1 . . . . 4 . . Propulsion 10 | . 5 . 4 . . . 1 . . Utility 6 | . 1 1 1 . . . 2 . 1 Weapon 12 | . 1 2 4 . . . 2 . 3 Tool/Special . | . . . . . . . . . . Average Slot Usage (%) 98 | . 92 99 99 99 100 100 99 99 74 Engine 11 | . 14 14 11 11 11 11 8 7 3 Leg 24 | . 28 28 22 22 22 22 26 30 19 Device 16 | . 4 14 15 20 22 22 16 15 21 Storage 11 | . 14 14 11 11 11 11 9 7 4 Processor 9 | . 7 . 10 11 11 11 17 15 13 Protection 1 | . . . 6 1 . . 1 6 . Energy Gun 21 | . 17 27 21 22 22 22 17 15 8 Peak Build Rating 38 | . 8 17 21 22 24 24 36 37 38 Average Rating 21 | . 7 15 17 21 23 24 30 31 27 On Entrance 18 | 6 6 8 17 15 22 24 24 30 37 Avg Prop Armor Cover (%) . | . . . . . . . . . . Naked Turns 11 | . . . . . . . . . 11 Heaviest Build 34 | 13 17 27 28 30 28 25 34 34 27 Greatest Support 50 | 20 20 20 23 23 20 20 44 50 50 Greatest Overweight (x) 1 | . . 1 1 1 1 1 . . 1 Average Overweight (x) . | . . . 1 1 1 1 . . . Largest Inventory Capacity 10 | . 10 10 10 10 10 10 10 10 10 Average Capacity 9 | . 8 10 10 10 10 10 10 10 8 Most Carried 10 | . 10 10 10 10 10 10 10 9 10 Average Carried 9 | . 7 9 9 9 10 10 9 8 7 Final Capacity 10 | 8 10 10 10 10 10 10 10 10 5 Final Carried 10 | 6 10 10 10 10 10 10 10 9 5 Class Distribution -------------------- 86% | Mutant 13% | Scavenger-Mutant Dominant Class ---------------- Mutant | -10/Materials Mutant | -10/Mines Scavenger-Mutant | -9/Materials Mutant | -9/Mines Mutant | -9/Exiles Mutant | -8/Mines Mutant | -8/Materials Mutant | -7/Factory Mutant | -7/Waste Resources | -11 -10 -10 -9 -9 -9 -8 -8 -7 -7 ----------- Run | Yrd Mat Min Mat Min Exi Min Mat Fac Was Matter Collected 1223 | 200 185 103 162 95 . . 478 . . Remotely . | . . . . . . . . . . Salvage Created 2600 | . 390 10 552 308 . . 1340 . . Parts 144 | . 26 3 30 13 . . 72 . . Haulers Intercepted 7 | . 1 . 2 . . . 4 . . Recyclers Shooed 4 | . 3 . . . . . 1 . . Parts Field Recycled . | . . . . . . . . . . Retrieved Matter . | . . . . . . . . . . Parts Self-Destructed . | . . . . . . . . . . Prevented . | . . . . . . . . . . Parts Restored . | . . . . . . . . . . Kills | -11 -10 -10 -9 -9 -9 -8 -8 -7 -7 ------- Run | Yrd Mat Min Mat Min Exi Min Mat Fac Was Combat Hostiles Destroyed 54 | . 7 1 9 7 . . 30 . . Guns 41 | . 7 1 8 6 . . 19 . . AOE 11 | . . . . . . . 11 . . Classes Destroyed 10 | . 5 . 1 2 . . 2 . . Worker 2 | . . . . . . . 2 . . Builder 4 | . . . . 1 . . 3 . . Hauler 7 | . 1 . 2 . . . 4 . . Recycler 2 | . 1 . . . . . 1 . . Watcher 7 | . 2 . 2 . . . 3 . . Swarmer 15 | . 3 1 . . . . 11 . . Grunt 30 | . 4 . 6 6 . . 14 . . Duelist 2 | . . . . 1 . . 1 . . Sentry 6 | . . . 3 . . . 3 . . Heavy 1 | . . . . . . . 1 . . Best Kill Streak 6 | . 3 1 3 4 . . 6 . . Combat Bots Only 6 | . 3 1 3 3 . . 6 . . Max Kills in Single Turn 3 | . 1 1 1 1 . . 3 . . Gunslinging . | . . . . . . . . . . Exploded 2 | . . . . . . . 2 . . Melee . | . . . . . . . . . . Uniques/NPCs Destroyed . | . . . . . . . . . . Combat | -11 -10 -10 -9 -9 -9 -8 -8 -7 -7 -------- Run | Yrd Mat Min Mat Min Exi Min Mat Fac Was Hostile Shots Fired 205 | . 35 . 32 27 . . 94 . 17 Missed 56 | . 8 . 9 5 . . 32 . 2 Hits 149 | . 27 . 23 22 . . 62 . 15 Melee 19 | . . . . 4 . . . . 15 Projectile 130 | . 27 . 23 18 . . 62 . . AOE 1 | . 1 . . . . . . . . Critical Strikes 16 | . 1 . 1 1 . . 4 . 9 Damage Taken 3139 | . 452 . 386 356 . . 1196 . 749 Core 1050 | . 65 . 91 54 . . 101 . 739 Absorbed by Shields . | . . . . . . . . . . Regen/Repaired (Parts) 275 | . . . . . . . 275 . . Core Remaining (%) 79 | 100 . 74 . . . 63 81 . . Volleys Fired 188 | . 51 2 37 16 . . 81 . 1 Largest 2 | . 2 2 2 2 . . 2 . 2 Hottest 126 | . 80 96 112 112 . . 126 . 122 Shots Fired 365 | . 91 4 74 32 . . 162 . 2 Gun 347 | . 91 4 74 32 . . 144 . 2 Cannon . | . . . . . . . . . . Launcher 18 | . . . . . . . 18 . . Special . | . . . . . . . . . . Kinetic 16 | . 16 . . . . . . . . Thermal 331 | . 75 4 74 32 . . 144 . 2 Explosive 18 | . . . . . . . 18 . . Electromagnetic . | . . . . . . . . . . Robot Hit Streak 19 | . 8 1 16 15 . . 19 . 5 Robot Miss Streak 3 | . 3 2 2 1 . . 3 . . Penetration Max . | . . . . . . . . . . Secondary Targets 1 | . . . 1 . . . . . . Max Gunslinging Chain 1 | . . . 1 . . . . . . Shots Hit Robots 256 | . 60 1 54 28 . . 111 . 2 Core Hits 130 | . 23 2 18 11 . . 76 . . Critical Kills . | . . . . . . . . . . Critical Parts Destroyed . | . . . . . . . . . . Critical Strikes 15 | . . . 2 5 . . 8 . . Burn 15 | . . . 2 5 . . 8 . . Melee Attacks . | . . . . . . . . . . Impact . | . . . . . . . . . . Slashing . | . . . . . . . . . . Piercing . | . . . . . . . . . . Sneak Attacks . | . . . . . . . . . . Combat Hostiles . | . . . . . . . . . . Follow-up Attacks . | . . . . . . . . . . Damage Inflicted 5578 | . 700 35 1029 475 . . 3299 . 40 Guns 4112 | . 698 11 829 466 . . 2068 . 40 Cannons . | . . . . . . . . . . Explosions 1399 | . . . 196 . . . 1203 . . Melee . | . . . . . . . . . . Ramming 67 | . 2 24 4 9 . . 28 . . Kinetic 171 | . 171 . . . . . . . . Thermal 4137 | . 527 11 1025 466 . . 2068 . 40 Explosive 1203 | . . . . . . . 1203 . . Electromagnetic . | . . . . . . . . . . Impact . | . . . . . . . . . . Slashing . | . . . . . . . . . . Piercing . | . . . . . . . . . . Highest Corruption 6 | . . . . . . . . . 6 Average Corruption 6 | . . . . . . . . . 6 Corruption Purged . | . . . . . . . . . . Corruption Blocked . | . . . . . . . . . . Effects 3 | . . . . . . . . . 3 Message Errors 1 | . . . . . . . . . 1 Heat Flow Errors 1 | . . . . . . . . . 1 Parts Rejected 1 | . . . . . . . . . 1 Overload Shots . | . . . . . . . . . . Overflow Damage 109 | . . . 46 . . . 63 . . Projectiles . | . . . . . . . . . . Explosions 109 | . . . 46 . . . 63 . . Melee . | . . . . . . . . . . Knockbacks . | . . . . . . . . . . Impact . | . . . . . . . . . . Kinetic . | . . . . . . . . . . Secondary . | . . . . . . . . . . Self-Inflicted Damage 102 | . . . 81 . . . 21 . . Shots 2 | . . . 1 . . . 1 . . Rammed . | . . . . . . . . . . Targets Rammed 19 | . 1 8 3 2 . . 5 . . Kicked 19 | . 1 8 3 2 . . 5 . . Crushed . | . . . . . . . . . . Highest Temperature 288 | . 166 42 156 126 . . 288 . 201 Average Temperature 53 | . 49 22 49 35 . . 65 . 109 Received Heat Transfer 810 | . 156 . 162 141 . . 351 . . Effects 2 | . . . . . . . 1 . 1 Energy Bleed 1 | . . . . . . . 1 . . Interference 1 | . . . . . . . . . 1 Siege Activations . | . . . . . . . . . . Martial Activations . | . . . . . . . . . . Shielding Activations . | . . . . . . . . . . Robots Disrupted . | . . . . . . . . . . Combat Hostiles . | . . . . . . . . . . Robots Corrupted . | . . . . . . . . . . Combat Hostiles . | . . . . . . . . . . Parts Fried . | . . . . . . . . . . Impact Corruptions . | . . . . . . . . . . Robots Melted 2 | . . . 1 1 . . . . . Combat Hostiles 2 | . . . 1 1 . . . . . Parts Melted 17 | . . . 6 3 . . 8 . . Heat Transferred 9470 | . 1200 25 2283 1443 . . 4445 . 74 Parts Sabotaged . | . . . . . . . . . . Parts Stolen . | . . . . . . . . . . Parts Stripped . | . . . . . . . . . . Power Chain Reactions . | . . . . . . . . . . Alert | -11 -10 -10 -9 -9 -9 -8 -8 -7 -7 ------- Run | Yrd Mat Min Mat Min Exi Min Mat Fac Was Maximum Alert Level 2 | . . . . . . . 2 1 . Low Security (%) 87 | . 100 100 100 100 . 100 57 . 100 Level 1 6 | . . . . . . . 19 100 . Level 2 5 | . . . . . . . 23 . . Level 3 . | . . . . . . . . . . Level 4 . | . . . . . . . . . . Level 5 . | . . . . . . . . . . High Security . | . . . . . . . . . . Max Security . | . . . . . . . . . . Peak Influence 661 | . 160 73 125 55 . . 661 300 94 Initial 298 | . . 31 . 24 . . . 298 94 Average 75 | . 80 8 63 9 . . 199 286 56 Influence Increases 2272 | . 306 139 493 213 . . 1109 12 . Destroy 0b10 Robot/C 1280 | . 140 100 280 160 . . 600 . . Destroy 0b10 Robot/NC 115 | . 20 . 25 5 . . 65 . . Destroy Leader 310 | . 26 20 90 30 . . 144 . . Allied During Kill 60 | . . 19 38 3 . . . . . Successful Hack 86 | . 30 . 12 . . . 32 12 . Disable Machine 90 | . . . 15 . . . 75 . . Destroy Structure 121 | . . . 33 . . . 88 . . Lose Combat Pursuer 210 | . 90 . . 15 . . 105 . . Influence Decreases 2272 | . 224 221 430 276 . . 451 400 270 Entered New Map 626 | . . 51 . 39 . . . 360 176 Time Decay 1412 | . 214 170 340 177 . . 421 40 50 Lost Part 134 | . 10 . 10 40 . . 30 . 44 Lost Ally 100 | . . . 80 20 . . . . . Squads Dispatched 8 | . . . . . . . 8 . . Investigation 2 | . . . . . . . 2 . . Extermination . | . . . . . . . . . . Reinforcement 3 | . . . . . . . 3 . . Assault . | . . . . . . . . . . Garrison 3 | . . . . . . . 3 . . Intercept . | . . . . . . . . . . Searches Triggered . | . . . . . . . . . . Construction Impeded 1 | . . . . . . . 1 . . Haulers Reinforced . | . . . . . . . . . . Active Scanning Responses . | . . . . . . . . . . Cargo Convoy Interrupts . | . . . . . . . . . . Stealth | -11 -10 -10 -9 -9 -9 -8 -8 -7 -7 --------- Run | Yrd Mat Min Mat Min Exi Min Mat Fac Was Distress Signals 2 | . . . . . . . 2 . . Communications Jammed . | . . . . . . . . . . Distress Signals . | . . . . . . . . . . Times Spotted 102 | . 16 7 20 9 . . 44 . 6 Peak Tracking Total 6 | . 4 3 4 3 . . 6 . 6 Tactical Retreats 8 | . 3 . . 1 . . 4 . . Traps | -11 -10 -10 -9 -9 -9 -8 -8 -7 -7 ------- Run | Yrd Mat Min Mat Min Exi Min Mat Fac Was Traps Triggered 3 | . . . . . . . 2 1 . Indirectly . | . . . . . . . . . . Trap Hack Attempts . | . . . . . . . . . . Triggered . | . . . . . . . . . . Disarmed . | . . . . . . . . . . Reprogrammed . | . . . . . . . . . . Reused . | . . . . . . . . . . Traps Reconfigurated 6 | . . . . . . . 5 1 . Traps Extracted . | . . . . . . . . . . Installed . | . . . . . . . . . . Triggered . | . . . . . . . . . . Machines | -11 -10 -10 -9 -9 -9 -8 -8 -7 -7 ---------- Run | Yrd Mat Min Mat Min Exi Min Mat Fac Was Machines Disabled 6 | . . . 1 . . . 5 . . Max in Single Turn 1 | . . . 1 . . . 1 . . Machines Repaired . | . . . . . . . . . . Machines Dismantled . | . . . . . . . . . . Machines Sabotaged . | . . . . . . . . . . Overloaded Fab Kills . | . . . . . . . . . . Hacking | -11 -10 -10 -9 -9 -9 -8 -8 -7 -7 --------- Run | Yrd Mat Min Mat Min Exi Min Mat Fac Was Machines Accessed 28 | . 4 1 6 . 4 . 12 1 . Terminals 17 | . 4 . 6 . . . 7 . . Fabricators . | . . . . . . . . . . Repair Stations 2 | . . . . . . . 2 . . Recycling Units 2 | . . . . . . . 2 . . Scanalyzers 2 | . . . . . . . 1 1 . Garrison Access . | . . . . . . . . . . Total Hacks 106 | . 14 1 18 . 27 . 44 2 . Successful 71 | . 6 1 5 . 27 . 31 1 . Failed 35 | . 8 . 13 . . . 13 1 . Catastrophic 3 | . 1 . 2 . . . . . . Database Lockouts . | . . . . . . . . . . Manual 27 | . 11 . 6 . 1 . 9 . . Terminals 49 | . 14 . 18 . . . 17 . . Fabricators . | . . . . . . . . . . Repair Stations 9 | . . . . . . . 9 . . Recycling Units 5 | . . . . . . . 5 . . Scanalyzers 15 | . . . . . . . 13 2 . Garrison Access . | . . . . . . . . . . Terminal Hacks 43 | . 6 1 5 . 27 . 4 . . Record 26 | . . . . . 26 . . . . Robot Analysis 4 | . 3 . . . . . 1 . . Prototype ID Bank 3 | . 1 . 1 . . . 1 . . Open Door 1 | . . 1 . . . . . . . Branch Access Points 2 | . 1 . 1 . . . . . . Emergency Access Points 1 | . . . . . . . 1 . . Locate Traps 2 | . 1 . 1 . . . . . . Dispatch Records 1 | . . . 1 . . . . . . Transport Status 1 | . . . . . . . 1 . . Hauler Manifests 1 | . . . 1 . . . . . . Proto ID Catalog 1 | . . . . . 1 . . . . Fabricator Hacks . | . . . . . . . . . . Repair Station Hacks 7 | . . . . . . . 7 . . Scan Component 4 | . . . . . . . 4 . . Repair 3 | . . . . . . . 3 . . Recycling Unit Hacks 3 | . . . . . . . 3 . . Report Inventory 2 | . . . . . . . 2 . . Retrieve Components 1 | . . . . . . . 1 . . Scanalyzer 13 | . . . . . . . 12 1 . Insert Component 3 | . . . . . . . 3 . . Analyze 5 | . . . . . . . 5 . . Retrieve Study 5 | . . . . . . . 4 1 . Garrison Access Hacks . | . . . . . . . . . . Unauthorized Hacks 5 | . . . . . . . 5 . . Terminals 3 | . . . . . . . 3 . . Botnet 3 | . . . . . . . 3 . . Fabricators . | . . . . . . . . . . Repair Stations . | . . . . . . . . . . Recycling Units 2 | . . . . . . . 2 . . Reject 1 | . . . . . . . 1 . . Mask 1 | . . . . . . . 1 . . Scanalyzers . | . . . . . . . . . . Garrison Access . | . . . . . . . . . . Data Cores Recovered . | . . . . . . . . . . Used . | . . . . . . . . . . Hacking Detections 18 | . 3 . 5 . . . 9 1 . Full Trace Events 2 | . . . . . . . 2 . . Feedback Events . | . . . . . . . . . . Feedback Blocked . | . . . . . . . . . . Robot Schematics Acquired . | . . . . . . . . . . Robots Built . | . . . . . . . . . . Authchips . | . . . . . . . . . . Time . | . . . . . . . . . . Total Robot Build Rating . | . . . . . . . . . . Part Schematics Acquired 2 | . . . . . . . 2 . . Parts Built . | . . . . . . . . . . Authchips . | . . . . . . . . . . Time . | . . . . . . . . . . Total Part Build Rating . | . . . . . . . . . . Part Studies Acquired 5 | . . . . . . . 4 1 . Parts Repaired 3 | . . . . . . . 3 . . Time 115 | . . . . . . . 115 . . Parts Recycled . | . . . . . . . . . . Recycled Matter . | . . . . . . . . . . Retrieved Matter . | . . . . . . . . . . Retrieved Components 7 | . . . . . . . 7 . . Parts Scanalyzed 3 | . . . . . . . 3 . . Part Schematics Acquired 2 | . . . . . . . 2 . . Parts Damaged . | . . . . . . . . . . Bothacking | -11 -10 -10 -9 -9 -9 -8 -8 -7 -7 ------------ Run | Yrd Mat Min Mat Min Exi Min Mat Fac Was Used RIF Installer . | . . . . . . . . . . Robots Hacked . | . . . . . . . . . . Non-combat . | . . . . . . . . . . Combat . | . . . . . . . . . . Robot Hacks Applied . | . . . . . . . . . . Relay Couplers Released . | . . . . . . . . . . Fabnet Peak Effective % . | . . . . . . . . . . Robots Rewired . | . . . . . . . . . . Allies Hacked . | . . . . . . . . . . Hacks Repelled . | . . . . . . . . . . Allies | -11 -10 -10 -9 -9 -9 -8 -8 -7 -7 -------- Run | Yrd Mat Min Mat Min Exi Min Mat Fac Was Total Allies 3 | . . 3 . . . . . . . Largest Group 3 | . . 3 3 . . . . . . Highest-Rated Group 40 | . . 40 40 . . . . . . Highest-Rated Ally 16 | . . 16 16 . . . . . . Total Orders 2 | . . 1 1 . . . . . . RETURN 2 | . . 1 1 . . . . . . Ally Attacks 109 | . . 34 54 21 . . . . . Total Damage 691 | . . 136 449 106 . . . . . Kills 11 | . . 4 6 1 . . . . . Allies Corrupted 1 | . . . 1 . . . . . . Allies Melted . | . . . . . . . . . . Intel | -11 -10 -10 -9 -9 -9 -8 -8 -7 -7 ------- Run | Yrd Mat Min Mat Min Exi Min Mat Fac Was Active Infowar (turns) 525 | . 277 . 51 . . . . 97 100 Sensors 51 | . . . 51 . . . . . . Structural 197 | . . . . . . . . 97 100 T.N.C. 277 | . 277 . . . . . . . . Robot Analysis Total 4 | . 3 . . . . . 1 . . Derelict Logs Recovered 3 | . . 2 . 1 . . . . . Drone Launches 16 | . . 7 5 4 . . . . . Drone Recoveries 13 | . . 4 7 2 . . . . . Exploration | -11 -10 -10 -9 -9 -9 -8 -8 -7 -7 ------------- Run | Yrd Mat Min Mat Min Exi Min Mat Fac Was Turns Passed 7724 | . 653 1656 997 1065 854 549 1738 98 114 Spaces Moved 4065 | 1 384 837 412 507 448 284 1015 86 91 Core 4 | . . . . . . . . . 4 Treads . | . . . . . . . . . . Legs 4061 | 1 384 837 412 507 448 284 1015 86 87 Wheels . | . . . . . . . . . . Hover . | . . . . . . . . . . Flight . | . . . . . . . . . . Fastest Speed 50 | 120 120 120 190 190 190 190 108 107 50 Average Speed 161 | 120 120 188 190 190 190 190 116 107 105 Slowest Speed 190 | 120 120 190 190 190 190 190 126 111 175 Overloaded Moves . | . . . . . . . . . . Propulsion Burnouts . | . . . . . . . . . . Robots Hopped . | . . . . . . . . . . Potential Cave-ins . | . . . . . . . . . . Cave-ins Triggered . | . . . . . . . . . . Exploration Rate (%) 59 | 2 65 99 45 72 88 69 79 3 72 Regions Visited 9 Branch Regions 4 Pre-discovered Areas . | . . . . . . . . . . Known Exits Taken 3 | . 1 . 1 . . 1 . . . Unknown Exits Taken 5 | 1 . 1 . 1 1 . 1 . . Scrap Searched 2 | . . 1 . 1 . . . . . Spaces Dug 46 | . . . . . . . 46 . . Terrain Destroyed 175 | . . . 43 . . . 132 . . Melee . | . . . . . . . . . . Projectile 2 | . . . . . . . 2 . . AOE 173 | . . . 43 . . . 130 . . Terrain Rammed . | . . . . . . . . . . Walls Destroyed . | . . . . . . . . . . Machines Disabled . | . . . . . . . . . . Actions | -11 -10 -10 -9 -9 -9 -8 -8 -7 -7 --------- Run | Yrd Mat Min Mat Min Exi Min Mat Fac Was Total 4889 | . 490 906 563 578 451 294 1410 91 106 Wait 428 | . 23 41 61 35 2 11 244 1 10 Move 4057 | . 383 836 411 506 447 283 1014 86 91 Hop . | . . . . . . . . . . Pick Up 51 | . 13 4 11 3 . . 18 1 1 Fast Attach 14 | . 2 2 4 1 1 . 3 . 1 Attach 15 | . 1 . 2 3 . . 5 2 2 Detach . | . . . . . . . . . . Swap 50 | . 5 5 11 6 . . 22 1 . Drop 67 | . 11 8 23 6 1 . 18 . . Fire 188 | . 51 2 37 16 . . 81 . 1 Melee . | . . . . . . . . . . Ram . | . . . . . . . . . . Kick 19 | . 1 8 3 2 . . 5 . . Crush . | . . . . . . . . . . Escape Stasis . | . . . . . . . . . . Rewire . | . . . . . . . . . . Trap . | . . . . . . . . . . Miscellaneous . | . . . . . . . . . . Route ------- -11/Scrapyard -10/Materials (discovered 2 exits: *Mat / *Min) -10/Mines (discovered 3 exits: *Mat x2 / [*Sub]) -9/Materials (discovered 3 exits: Mat / *Min x2) -9/Mines (discovered 3 exits: *Mat x2 / *Exi) -9/Exiles -8/Mines -8/Materials (discovered 3 exits: *Fac x2 / [*Sto]) -7/Factory -7/Waste History --------- Turn | Location | Event 1 | -11/Scrapyard | Discovered new exit (range 0) 1 | -11/Scrapyard | Entered Materials 41 | -10/Materials | Discovered new exit (range 16) 314 | -10/Materials | Build established: Mutant 494 | -10/Materials | Identified exit to Mines 654 | -10/Materials | Entered Mines 659 | -10/Mines | Joined a pair of Derelicts in attacking an 0b10 outpost 779 | -10/Mines | Found the Drone Emporium 788 | -10/Mines | Found Prototype Device 788 | -10/Mines | Identified Thief Drone Bay 1362 | -10/Mines | Discovered new exit (range 17) 1406 | -10/Mines | Assisted by bots powering up and referring to "LRC-V3" 1516 | -10/Mines | Discovered new exit (range 9) 1592 | -10/Mines | Learned location of 1 exit from Materials 1598 | -10/Mines | Discovered new exit (range 8) 1778 | -10/Mines | Learned Materials stockpile data 1923 | -10/Mines | A weapon hastily lodged in a ceiling crevice suddenly fell to the ground 2310 | -10/Mines | Entered Materials 2310 | -9/Materials | Accompanied by 6 allies 2310 | -9/Materials | Evolved 2 slots: Utility x2 2311 | -9/Materials | Identified exit to Materials 2815 | -9/Materials | Build established: Scavenger-Mutant 2976 | -9/Materials | Discovered new exit (range 10) 3195 | -9/Materials | Identified exit to Mines 3307 | -9/Materials | Entered Mines 3384 | -9/Mines | Discovered exit to Materials (range 6) 3661 | -9/Mines | Build established: Mutant 3704 | -9/Mines | Discovered exit to Materials (range 10) 4035 | -9/Mines | Learned Materials garrison access intel 4362 | -9/Mines | Deemed a non-threat by the Exiles lab entrance 4364 | -9/Mines | Discovered new exit (range 6) 4372 | -9/Mines | Entered Exiles 4372 | -9/Exiles | Accompanied by 1 ally 4418 | -9/Exiles | Met 8R-AWN 4450 | -9/Exiles | Met EX-HEX 4526 | -9/Exiles | Met EX-BIN 4551 | -9/Exiles | Aligned with FarCom system 4553 | -9/Exiles | Given EX-Vault access code 4597 | -9/Exiles | Opened EX-Vault 4688 | -9/Exiles | Warned to stay clear of 0b10 Research branches 4766 | -9/Exiles | Found Trap Reconfigurator 4859 | -9/Exiles | Met EX-DEC 4919 | -9/Exiles | Visited The Gauntlet 5205 | -9/Exiles | Discovered new exit (range 14) 5226 | -9/Exiles | Left Exiles lab with Trap Reconfigurator 5226 | -9/Exiles | Entered Mines 5762 | -8/Mines | Discovered exit to Materials (range 8) 5775 | -8/Mines | Entered Materials 5775 | -8/Materials | Evolved 2 slots: Propulsion x1, Utility x1 5776 | -8/Materials | Loaded intel: 1 garrison access location 6248 | -8/Materials | Discovered new exit (range 16) 6321 | -8/Materials | Repaired Imp. Medium Laser 6348 | -8/Materials | Repaired Aluminum Leg 6379 | -8/Materials | Discovered new exit (range 10) 7043 | -8/Materials | Garrison activated, responded to threat 7321 | -8/Materials | Lost 3 parts (1p2u) 7384 | -8/Materials | Repaired Hrd. Medium Armor Plating 7496 | -8/Materials | Discovered new exit (range 10) 7513 | -8/Materials | Entered Factory 7513 | -7/Factory | Evolved 2 slots: Propulsion x1, Utility x1 7611 | -7/Factory | Sucked down chute 7611 | -7/Factory | Entered Waste 7626 | -7/Waste | EMP discharged 7639 | -7/Waste | Spotted C-40 Crusher 7647 | -7/Waste | Spotted C-40 Crusher 7650 | -7/Waste | Spotted C-40 Crusher 7667 | -7/Waste | Spotted C-40 Crusher 7669 | -7/Waste | Spotted C-40 Crusher 7677 | -7/Waste | Crushed by Compactor (1 part destroyed, 2 dropped) 7678 | -7/Waste | Crushed by Compactor (1 part destroyed, 2 dropped) 7682 | -7/Waste | Crushed by Compactor (1 part destroyed, 1 dropped) 7683 | -7/Waste | Spotted C-40 Crusher 7711 | -7/Waste | Crushed by Compactor (1 part destroyed, 1 dropped) 7711 | -7/Waste | Crushed by Compactor (1 part destroyed, 1 dropped) 7714 | -7/Waste | Crushed by Compactor (1 part destroyed, 1 dropped) 7717 | -7/Waste | Core integrity fell below 50% 7723 | -7/Waste | Core integrity fell below 20% 7725 | -7/Waste | Destroyed by C-40 Crusher with Compactor Last Messages --------------- 07678_ Aluminum Leg+ crushed. 07682_ Titanium Leg+ crushed. 07682_ Adv. Beam Rifle crushed. 07682_ Med. Storage Unit crushed. 07682_ Lgt. Nuclear Core+ crushed. 07686_ Hrd. Medium Armor Plating crushed. 07686_ Aluminum Leg+ crushed. 07688_ Weapon Cycler crushed. 07689_ Lgt. Nuclear Core+ crushed. 07710_ 4KOINCJCMYTEJ31CAQ/:,A862OV0UPU 07711_ Structural Scanner crushed. 07711_ Aluminum Leg+ crushed. 07711_ Imp. Heat Sink crushed. 07711_ Trap Reconfigurator crushed. 07711_ Targeting Computer destroyed. 07712_ Acquired Trap Reconfigurator. 07714_ Trap Reconfigurator crushed. 07714_ Targeting Computer crushed. 07716_ ALERT: Foreign system detected. Charging EMP. 07716_ Aluminum Leg+ crushed. Map ----- +----------------------------------------------------+ | ?????????????????????????????????????????????????? | | ?????????????????????????????????????????????????? | | ?????????????????????????????????????????????????? | | ?????????????????????????????????????????????????? | | ?????????????????????????????????????????????????? | | ?????????????????????????????????????????????????? | | ??????????????????############???????????????????? | | ??????????????????############???????????????????? | | ??????????????????## ##???????????????????? | | ??????????????????## ##???????????????????? | | ??????????????????## ##???????????????????? | | ??????????????????## ##???????????????????? | | ??????????????????## ##???????????????????? | | ??????????????????## ##???????????????????? | | ####????########??## ##???????????????????? | | ####????########??## ##???????????????????? | | ##????## ##??#### ####???????????????????? | | ##????## ##????## ##?????????????????????? | | ##????## ##????## ##?????????????????????? | | ######## ##????## ####???????????????????? | | ######## ##????## ####???????????????????? | | ##????## ##???????????????????? | | ##????## ##???????????????????? | | ##????## CCCC ##???????????????????? | | * ##????## CCCC ##???????????????????? | | ######## ##????##CC @####???????????????????? | | /######## ##????##CCCC####???????????????????? | | ##????## ##????## CC##?????????????????????? | | ##????## ######## CC####???????????????????? | | ##????## ######## CC####???????????????????? | | ##????## !!* CC ##???????????????????? | | ##????## CC ##???????????????????? | | ##????## ##???????????????????? | | ##????## ##???????????????????? | | ##????## ######## ####???????????????????? | | ##????## ######## ####???????????????????? | | ##????## ##????## ##?????????????????????? | | ##????## ##????## ##?????????????????????? | | ????????## ##????## ##?????????????????????? | | ???????? ##????## ?????????????????????? | | ???????? ##????## ?????????????????????? | | ??????? ##????## ????????????????????? | | ????? ##????## ???????????????????? | | ?????##### ##????## ####???????????????????? | | ?????##### ##?????? ####???????????????????? | | ????????## ##?????? ##?????????????????????? | | ????????## ##?????????????????????????????????? | | ????????## ???????????????????????????????????? | | ?????????????????????????????????????????????????? | | ?????????????????????????????????????????????????? | +----------------------------------------------------+ Best States ------------- Heat Dissipation 59 Coolant Potential 50 Energy Generation 16 Energy Capacity 290 Matter Stores 300 Matter Capacity 300 Sight Range 16 Robot Scan Range 14 Terrain Scan Density 10 Armor Coverage 225 Evasion (%) 55 Targeting Accuracy 11 Particle Charging 15 Item Schematics ----------------- Particle Charger | -8/Materials | Scanalyzed Aluminum Leg | -8/Materials | Scanalyzed Robot Schematics ------------------ None Fabricated ------------ Nothing Repaired ---------- Imp. Medium Laser | 21% | -8/Materials Aluminum Leg | 46% | -8/Materials Hrd. Medium Armor Plating | 35% | -8/Materials Studied --------- Aluminum Leg | -8/Materials | Hacked Titanium Leg | -8/Materials | Hacked Lgt. Nuclear Core | -8/Materials | Hacked Rocket Launcher | -8/Materials | Hacked Imp. Aluminum Leg | -7/Factory | Hacked Alien Tech Used ----------------- None Achievements -------------- Dramatic Entrance Challenges ------------ None Game ------ Seed FlyingChainDriver Manual? 0 Play Time 01:23:49 Cumulative 78.8 hours Start 2026.06.28 @ 13:19:55 End 2026.06.30 @ 21:35:35 Sessions 2 Manual Loads 0 Difficulty Rogue Special Mode None Game No. 89 Rogue 89 Adventurer 0 Explorer 0 Win Type - Total 1 Types 1/0/0/0/0/0/0/0/0/0 Lore% 31 Gallery% 35 Achievement% 30 Wizard Run 0 Options --------- Layout 0 ASCII 0 Keyboard 0 Movement Mouse Keybinds 0 Fullscreen 0 Font 16/SmallcapsGlow Map View 88x55 Zoom Use 0% Tactical HUD 1 Map Filters NONE Filters NONE Steam 1 RUN: c2503283-840e-4a69-9778-b1f4413d9297